bitfinex/quotes_BTCUSD_20251209
["timestamp","ask_amount","ask_price","bid_price","bid_amount"]
[1765269560823,0.22101049,90494.0,90481.0,0.22104088]
[1765269560824,0.01105082,90491.0,90486.0,0.01105143]
[1765269561053,0.00038583,90492.0,90490.0,0.00161287]
[1765269561266,0.00038583,90492.0,90491.0,0.01805287]
[1765269561664,0.00038583,90492.0,90491.0,0.04269287]
[1765269562069,0.00038583,90492.0,90491.0,0.26370932]
[1765269562280,0.00038583,90492.0,90491.0,0.29342998]
[1765269562490,0.00038583,90492.0,90491.0,0.5967075]
[1765269563068,0.00038583,90492.0,90491.0,0.65923049]
[1765269563295,0.23198095,90525.0,90520.0,0.23199269]
[1765269563640,0.01104691,90523.0,90520.0,0.02856835]
[1765269563815,0.01104691,90523.0,90521.0,0.02464]
[1765269564016,0.23198561,90523.0,90522.0,0.01644]
[1765269564182,0.23198561,90523.0,90522.0,0.04108]
[1765269564586,0.01104691,90523.0,90522.0,0.04108]
[1765269564936,0.23198523,90523.0,90522.0,0.04108]
[1765269565135,0.23198523,90523.0,90522.0,0.04208]
[1765269566416,0.01104691,90523.0,90522.0,0.04208]
[1765269566617,0.01104691,90523.0,90522.0,0.04308]
[1765269569171,0.23198523,90523.0,90522.0,0.04308]
[1765269569537,0.01104691,90523.0,90522.0,0.04308]
[1765269570164,0.01104679,90524.0,90522.0,0.04308]
[1765269570366,0.01104679,90524.0,90523.0,0.04044]
[1765269571546,0.01104679,90524.0,90523.0,0.04144]
[1765269572995,0.01104679,90524.0,90523.0,0.04244]
[1765269574591,0.01104667,90525.0,90523.0,0.04244]
[1765269574901,0.22089202,90542.0,90537.0,0.0110452]
[1765269575124,0.22087515,90549.0,90542.0,0.01104459]
[1765269575339,0.01104398,90547.0,90542.0,0.01265746]
[1765269575471,0.22087212,90551.0,90542.0,0.01265746]
[1765269575472,0.01104313,90554.0,90549.0,0.02291374]
[1765269575668,0.00150413,90555.0,90553.0,0.02797]
[1765269575876,0.00150413,90555.0,90554.0,0.0161]
[1765269576076,0.00150413,90555.0,90554.0,0.04205287]
[1765269576649,0.00150413,90555.0,90554.0,0.04216835]
[1765269577604,0.00150413,90555.0,90554.0,0.04316835]
[1765269577823,0.00150413,90555.0,90554.0,0.07385776]
[1765269578036,0.00150413,90555.0,90554.0,0.06516435]
[1765269578218,0.00150413,90555.0,90554.0,0.0947663]
[1765269578413,0.00150413,90555.0,90554.0,0.06716435]
[1765269578815,0.00150413,90555.0,90554.0,0.06616435]
[1765269579220,0.00150413,90555.0,90554.0,0.06816435]
[1765269579658,0.00150413,90555.0,90554.0,0.06416435]
[1765269579858,0.00150413,90555.0,90554.0,0.06716435]
[1765269580076,0.00150413,90555.0,90554.0,0.06916435]
[1765269580274,0.00150413,90555.0,90554.0,0.06616435]
[1765269580472,0.00150413,90555.0,90554.0,0.06916435]
[1765269581793,0.00150413,90555.0,90554.0,0.04716835]
[1765269582270,0.00150413,90555.0,90554.0,0.26803103]
[1765269590249,0.00150413,90555.0,90554.0,0.2846007]
[1765269591302,0.00150413,90555.0,90554.0,0.31418189]
[1765269592156,0.00150413,90555.0,90554.0,0.2846007]
[1765269595805,0.00150413,90555.0,90554.0,0.3065967]
[1765269596009,0.00150413,90555.0,90554.0,0.36591544]
[1765269596185,0.00150413,90555.0,90554.0,0.3065967]
[1765269598728,0.00150413,90555.0,90554.0,0.3035967]
[1765269599743,0.00150413,90555.0,90554.0,0.3055967]
[1765269600106,0.00150413,90555.0,90554.0,0.3085967]
[1765269600677,0.00150413,90555.0,90554.0,0.6315967]
[1765269601235,0.00150413,90555.0,90554.0,0.71100879]
[1765269601731,0.00150413,90555.0,90554.0,0.6315967]
[1765269602101,0.00150413,90555.0,90554.0,0.69411969]
[1765269602969,0.00150413,90555.0,90554.0,0.69011969]
[1765269603171,0.00150413,90555.0,90554.0,0.69111969]
[1765269603529,0.00150413,90555.0,90554.0,0.81151969]
[1765269603734,0.00150413,90555.0,90554.0,0.69511969]
[1765269604366,0.01103959,90583.0,90580.0,0.01103996]
[1765269604536,0.01103959,90583.0,90581.0,0.01748]
[1765269604537,0.01031059,90582.0,90581.0,0.01748]
[1765269604750,0.01031059,90582.0,90581.0,0.04168]
[1765269604953,0.01031059,90582.0,90581.0,0.10777432]
[1765269605134,0.01031059,90582.0,90581.0,0.06811]
[1765269605940,0.01231059,90582.0,90581.0,0.06811]
[1765269607143,0.01331059,90582.0,90581.0,0.06811]
[1765269610409,0.01331059,90582.0,90581.0,0.09018968]
[1765269610557,0.01331059,90582.0,90581.0,0.06972287]
[1765269610772,0.00380169,90582.0,90581.0,0.09180255]
[1765269611195,0.00180169,90582.0,90581.0,0.09180255]
[1765269611394,0.00380169,90582.0,90581.0,0.09180255]
[1765269611823,0.00180169,90582.0,90581.0,0.09180255]
[1765269612151,0.00380169,90582.0,90581.0,0.09180255]
[1765269612386,0.00380169,90582.0,90581.0,0.06972287]
[1765269612589,0.00280169,90582.0,90581.0,0.06972287]
[1765269613136,0.00280169,90582.0,90581.0,0.09180255]
[1765269613936,0.00280169,90582.0,90581.0,0.09280255]
[1765269614263,0.00080169,90582.0,90581.0,0.09280255]
[1765269614507,0.00280169,90582.0,90581.0,0.04950968]
[1765269614655,0.01312676,90582.0,90581.0,0.04491]
[1765269615004,0.01312676,90582.0,90581.0,0.06811]
[1765269615349,0.01312676,90582.0,90581.0,0.06911]
[1765269617458,0.00280169,90582.0,90581.0,0.06911]
[1765269619787,0.00280169,90582.0,90581.0,0.01848]
[1765269619966,0.00280169,90582.0,90581.0,0.001]
[1765269620485,0.00280169,90582.0,90581.0,0.05163]
[1765269624192,0.00280169,90582.0,90581.0,0.11110861]
[1765269625125,0.00280169,90582.0,90581.0,0.05163]
[1765269625712,0.00280169,90582.0,90581.0,0.11120518]
[1765269626216,0.00280169,90582.0,90581.0,0.05163]
[1765269626420,0.00280169,90582.0,90581.0,0.07532255]
[1765269627791,0.00280169,90582.0,90581.0,0.05224287]
[1765269627970,0.00080169,90582.0,90581.0,0.05324287]
[1765269628174,0.00180169,90582.0,90581.0,0.05324287]
[1765269629218,0.2225961,90582.0,90581.0,0.05324287]
[1765269629425,0.00180169,90582.0,90581.0,0.05324287]
[1765269630670,0.00180169,90582.0,90581.0,0.05224287]
[1765269631074,0.00180169,90582.0,90581.0,0.05424287]
[1765269631278,0.00180169,90582.0,90581.0,0.05263]
[1765269631484,0.00080169,90582.0,90581.0,0.03079]
[1765269631729,0.00080169,90582.0,90581.0,0.03179]
[1765269632137,0.00080169,90582.0,90581.0,0.02979]
[1765269632740,0.00080169,90582.0,90581.0,0.04604]
[1765269633144,0.00080169,90582.0,90581.0,0.01848]
[1765269633355,0.00080169,90582.0,90581.0,0.02048]
[1765269633986,0.00080169,90582.0,90581.0,0.01748]
[1765269634346,0.00080169,90582.0,90581.0,0.01848]
[1765269642756,0.00080169,90582.0,90581.0,0.0416]
[1765269643559,0.00080169,90582.0,90581.0,0.01848]
[1765269647940,0.00080169,90582.0,90581.0,0.001]
[1765269647941,0.09473436,90582.0,90581.0,0.001]
[1765269648421,0.05305997,90582.0,90581.0,0.001]
[1765269648624,0.22079685,90581.0,90579.0,0.02981269]
[1765269648838,0.05845372,90580.0,90579.0,0.02981269]
[1765269649042,0.0221,90578.0,90577.0,0.02981269]
[1765269649183,0.0221,90578.0,90564.0,0.01748]
[1765269649184,0.0221,90576.0,90575.0,0.02981269]
[1765269649389,0.0221,90575.0,90574.0,0.02981269]
[1765269649588,0.0221,90575.0,90564.0,0.07714027]
[1765269649589,0.25842123,90571.0,90570.0,0.03977492]
[1765269649793,0.0221,90565.0,90564.0,0.01748]
[1765269651309,0.0221,90565.0,90564.0,0.07704159]
[1765269651919,0.0221,90565.0,90564.0,0.07804159]
[1765269652120,0.0221,90565.0,90564.0,0.07802905]
[1765269652548,0.22083342,90566.0,90564.0,0.01848]
[1765269652719,0.22083342,90566.0,90565.0,0.05954886]
[1765269653350,0.22083342,90566.0,90564.0,0.07702886]
[1765269653555,0.0221,90565.0,90564.0,0.01748]
[1765269653754,0.0221,90565.0,90564.0,0.01848]
[1765269654768,0.0221,90565.0,90564.0,0.01748]
[1765269655107,0.02239698,90565.0,90564.0,0.01848]
[1765269655263,0.00029698,90565.0,90564.0,0.01848]
[1765269655643,0.02239698,90565.0,90564.0,0.01848]
[1765269656049,0.00029698,90565.0,90564.0,0.01848]
[1765269656876,0.02239698,90565.0,90564.0,0.01848]
[1765269657453,0.00029698,90565.0,90564.0,0.01848]
[1765269658485,0.02239698,90565.0,90564.0,0.01848]
[1765269659685,0.00029698,90565.0,90564.0,0.01848]
[1765269661863,0.02239698,90565.0,90564.0,0.01848]
[1765269662332,0.09806441,90565.0,90564.0,0.01848]
[1765269663571,0.02239698,90565.0,90564.0,0.01848]
[1765269665043,0.00029698,90565.0,90564.0,0.01848]
[1765269667179,0.00029698,90565.0,90564.0,0.05815383]
[1765269667745,0.00029698,90565.0,90564.0,0.05832]
[1765269672366,0.00029698,90565.0,90564.0,0.11786886]
[1765269674383,0.00029698,90565.0,90564.0,0.05832]
[1765269675338,0.00029698,90565.0,90564.0,0.08040383]
[1765269677958,0.00029698,90565.0,90564.0,0.05832]
[1765269678166,0.00029698,90565.0,90564.0,0.08040383]
[1765269678371,0.00029698,90565.0,90564.0,0.05832]
[1765269680001,0.00029698,90565.0,90564.0,0.07940383]
[1765269680829,0.00029698,90565.0,90564.0,0.08040383]
[1765269681348,0.00029698,90565.0,90564.0,0.07940383]
[1765269681729,0.00029698,90565.0,90564.0,0.05932]
[1765269683175,0.00029698,90565.0,90564.0,0.06132]
[1765269683385,0.00029698,90565.0,90564.0,0.0830167]
[1765269683675,0.01104118,90570.0,90566.0,0.01104167]
[1765269683878,0.22082299,90571.0,90569.0,0.01551]
[1765269684020,0.23186405,90571.0,90570.0,0.0238561]
[1765269684224,0.01104106,90571.0,90570.0,0.0393661]
[1765269684450,0.01104106,90571.0,90570.0,0.0636961]
[1765269685466,0.01104106,90571.0,90570.0,0.0646961]
[1765269686886,0.01104106,90571.0,90570.0,0.0656961]
[1765269688458,0.01104106,90571.0,90570.0,0.0413661]
[1765269688653,0.02139581,90571.0,90570.0,0.0413661]
[1765269689175,0.02139591,90571.0,90570.0,0.0413661]
[1765269691157,0.02139591,90571.0,90570.0,0.0346961]
[1765269691628,0.02139591,90571.0,90570.0,0.0356961]
[1765269692386,0.04349591,90571.0,90570.0,0.0356961]
[1765269692589,0.02139591,90571.0,90570.0,0.0356961]
[1765269695200,0.02139591,90571.0,90570.0,0.0597861]
[1765269696199,0.02139591,90571.0,90570.0,0.0201861]
[1765269696897,0.02139591,90571.0,90570.0,0.0355761]
[1765269697115,0.02139591,90571.0,90570.0,0.0596661]
[1765269697615,0.02139591,90571.0,90570.0,0.0586661]
[1765269697843,0.02139591,90571.0,90570.0,0.0596661]
[1765269698048,0.01035485,90571.0,90570.0,0.0596661]
[1765269698169,0.01036062,90571.0,90570.0,0.0606661]
[1765269698375,0.01036062,90571.0,90570.0,0.28148977]
[1765269698581,0.00023755,90573.0,90572.0,0.22081879]
[1765269698785,0.00023755,90573.0,90572.0,0.23620879]
[1765269699020,0.01104008,90579.0,90576.0,0.23184886]
[1765269699270,0.01104008,90579.0,90578.0,0.02673]
[1765269699475,0.0214007,90579.0,90578.0,0.05082]
[1765269700388,0.0214007,90579.0,90578.0,0.11045738]
[1765269700613,0.0214007,90579.0,90578.0,0.08636738]
[1765269700811,0.0214007,90579.0,90578.0,0.05963738]
[1765269701017,0.0593307,90579.0,90578.0,0.05963738]
[1765269701392,0.24290416,90578.0,90577.0,0.05963738]
[1765269701595,0.26967478,90578.0,90577.0,0.039765]
[1765269701787,0.26967478,90578.0,90575.0,0.01744]
[1765269701788,0.24290904,90576.0,90575.0,0.01744]
[1765269701984,0.26887966,90576.0,90575.0,0.01744]
[1765269702192,0.25326966,90576.0,90575.0,0.01744]
[1765269702402,0.0110413,90569.0,90566.0,0.23187509]
[1765269702599,0.02140143,90573.0,90570.0,0.01187]
[1765269702823,0.01104081,90573.0,90570.0,0.01187]
[1765269703027,0.23185894,90573.0,90570.0,0.01187]
[1765269703261,0.23185894,90573.0,90572.0,0.02726]
[1765269703466,0.2422152,90573.0,90572.0,0.05111698]
[1765269703801,0.2422152,90573.0,90572.0,0.07520698]
[1765269704625,0.2422152,90573.0,90572.0,0.07620698]
[1765269706092,0.2422152,90573.0,90572.0,0.07720698]
[1765269706994,0.2422152,90573.0,90572.0,0.03772698]
[1765269707279,0.2643152,90573.0,90572.0,0.03772698]
[1765269708023,0.2643152,90573.0,90572.0,0.02585698]
[1765269709279,0.2578252,90573.0,90572.0,0.02585698]
[1765269709474,0.2963352,90573.0,90572.0,0.02585698]
[1765269710198,0.29633208,90573.0,90572.0,0.02485698]
[1765269710400,0.31274917,90573.0,90572.0,0.02385698]
[1765269710599,0.33921392,90573.0,90572.0,0.02385698]
[1765269710811,0.31474917,90573.0,90572.0,0.02385698]
[1765269712226,0.29933917,90573.0,90572.0,0.02385698]
[1765269712833,0.31574917,90573.0,90572.0,0.02385698]
[1765269716675,0.31574917,90573.0,90572.0,0.05366532]
[1765269716822,0.31574917,90573.0,90572.0,0.02385698]
[1765269717030,0.84685629,90573.0,90572.0,0.02385698]
[1765269717259,0.08462299,90561.0,90560.0,0.02980834]
[1765269717464,0.65626174,90561.0,90560.0,0.02980834]
[1765269717663,0.40762299,90560.0,90559.0,0.02980834]
[1765269717840,0.58237025,90555.0,90554.0,0.00011548]
[1765269718047,0.59272339,90555.0,90554.0,0.00011548]
[1765269718283,0.60913339,90555.0,90554.0,0.00011548]
[1765269719345,0.61013339,90555.0,90554.0,0.00011548]
[1765269719545,0.71861267,90555.0,90554.0,0.00011548]
[1765269719953,0.72161267,90555.0,90554.0,0.00011548]
[1765269720373,0.59672339,90555.0,90554.0,0.00011548]
[1765269720592,0.57453764,90555.0,90554.0,0.00011548]
[1765269721134,0.23521339,90555.0,90554.0,0.04039548]
[1765269721250,0.22486025,90555.0,90554.0,0.04039548]
[1765269721458,0.22486025,90555.0,90554.0,0.01591548]
[1765269722064,0.22486025,90555.0,90554.0,0.08177941]
[1765269722065,0.004,90555.0,90554.0,0.08177941]
[1765269722272,0.004,90555.0,90554.0,0.10386567]
[1765269722481,0.004,90555.0,90554.0,0.04200835]
[1765269723113,0.004,90555.0,90554.0,0.06409461]
[1765269723315,0.001,90555.0,90554.0,0.06409461]
[1765269723883,0.001,90555.0,90554.0,0.12374982]
[1765269724275,0.0110424,90560.0,90557.0,0.01104276]
[1765269724476,0.01104264,90558.0,90556.0,0.01744]
[1765269724772,0.01104252,90559.0,90556.0,0.05291289]
[1765269724977,0.01104252,90559.0,90558.0,0.01579]
[1765269725126,0.01104252,90559.0,90558.0,0.0554639]
[1765269725329,0.01104252,90559.0,90558.0,0.0798939]
[1765269725658,0.01104228,90561.0,90558.0,0.0798939]
[1765269725862,0.01104228,90561.0,90559.0,0.04022]
[1765269726207,0.01104228,90561.0,90560.0,0.01579]
[1765269727176,0.23188789,90561.0,90560.0,0.01579]
[1765269727791,0.23188789,90561.0,90560.0,0.04022]
[1765269727998,0.01104228,90561.0,90560.0,0.04022]
[1765269729326,0.01104228,90561.0,90560.0,0.06402538]
[1765269729759,0.08443328,90561.0,90560.0,0.03959538]
[1765269729933,0.08443328,90561.0,90560.0,0.02380538]
[1765269730134,0.10653328,90561.0,90560.0,0.02380538]
[1765269731390,0.03314228,90561.0,90560.0,0.02380538]
[1765269732416,0.01104228,90561.0,90560.0,0.02380538]
[1765269733792,0.01104228,90561.0,90560.0,0.04823538]
[1765269733955,0.03314215,90562.0,90560.0,0.06402538]
[1765269734157,0.25398752,90562.0,90561.0,0.02380538]
[1765269735777,0.01104215,90562.0,90561.0,0.06402538]
[1765269735956,0.01204215,90562.0,90561.0,0.06402538]
[1765269736159,0.01104215,90562.0,90561.0,0.06402538]
[1765269738017,0.08211827,90562.0,90561.0,0.03959538]
[1765269738253,0.01104215,90562.0,90561.0,0.06402538]
[1765269738436,0.03314215,90562.0,90561.0,0.02380538]
[1765269740424,0.22082554,90570.0,90561.0,0.06563825]
[1765269740632,0.22081134,90576.0,90561.0,0.06563825]
[1765269740633,0.01104081,90573.0,90569.0,0.23186726]
[1765269740855,0.01127736,90581.0,90575.0,0.02729]
[1765269741058,0.00023752,90581.0,90580.0,0.02729]
[1765269741186,0.00023752,90581.0,90580.0,0.11524307]
[1765269741596,0.00023752,90581.0,90580.0,0.07552538]
[1765269742205,0.00023752,90581.0,90580.0,0.11521468]
[1765269743421,0.00023752,90581.0,90580.0,0.07552538]
[1765269743556,0.00023752,90581.0,90580.0,0.07652538]
[1765269743961,0.00023752,90581.0,90580.0,0.07552538]
[1765269744389,0.00023752,90581.0,90580.0,0.07652538]
[1765269744810,0.00023752,90581.0,90580.0,0.11621468]
[1765269745134,0.00023752,90581.0,90580.0,0.11721468]
[1765269745337,0.00023752,90581.0,90580.0,0.07752538]
[1765269745763,0.00023752,90581.0,90580.0,0.02580538]
[1765269745999,0.00023752,90581.0,90575.0,0.23185]
[1765269746000,0.01104093,90572.0,90569.0,0.02974553]
[1765269746148,0.00999456,90557.0,90556.0,0.02974553]
[1765269746360,0.00999456,90556.0,90555.0,0.02974553]
[1765269746560,0.22086025,90555.0,90554.0,0.00011548]
[1765269746859,0.23085481,90555.0,90554.0,0.00011548]
[1765269747209,0.24726481,90555.0,90554.0,0.00011548]
[1765269747359,0.26367481,90555.0,90554.0,0.00011548]
[1765269747741,0.24726481,90555.0,90554.0,0.00011548]
[1765269747948,0.26367481,90555.0,90554.0,0.00011548]
[1765269748133,0.24726481,90555.0,90554.0,0.00011548]
[1765269748336,0.23085481,90555.0,90554.0,0.00011548]
[1765269748672,0.25758464,90555.0,90554.0,0.00311548]
[1765269748879,0.27399464,90555.0,90554.0,0.00311548]
[1765269749222,0.25758464,90555.0,90554.0,0.00311548]
[1765269749400,0.25758464,90555.0,90554.0,0.00111548]
[1765269749571,0.25758464,90555.0,90554.0,0.00011548]
[1765269749987,0.33580544,90555.0,90554.0,0.00011548]
[1765269750767,0.31939544,90555.0,90554.0,0.00011548]
[1765269751155,0.31939544,90555.0,90554.0,0.00271548]
[1765269752595,0.30907561,90555.0,90554.0,0.00271548]
[1765269753957,0.24296025,90555.0,90554.0,0.00271548]
[1765269755301,0.22086025,90555.0,90554.0,0.00271548]
[1765269763891,0.22086025,90555.0,90554.0,0.00521548]
[1765269768753,0.24296025,90555.0,90554.0,0.00521548]
[1765269773313,0.25328682,90555.0,90554.0,0.00521548]
[1765269774253,0.32943684,90555.0,90554.0,0.00521548]
[1765269774450,0.32943684,90555.0,90554.0,0.03496101]
[1765269775441,0.32943684,90555.0,90554.0,0.00521548]
[1765269775823,0.32943684,90555.0,90554.0,0.04500181]
[1765269776463,0.25328682,90555.0,90554.0,0.04500181]
[1765269778089,0.25328682,90555.0,90554.0,0.00521548]
[1765269780094,0.23118682,90555.0,90554.0,0.00521548]
[1765269780440,0.23118682,90555.0,90554.0,0.04344548]
[1765269780441,0.01032657,90555.0,90554.0,0.04344548]
[1765269780645,0.02746808,90557.0,90554.0,0.04344548]
[1765269780646,0.02136933,90557.0,90554.0,0.05448861]
[1765269780973,0.02136933,90557.0,90556.0,0.02762]
[1765269781176,0.02136933,90557.0,90556.0,0.08730514]
[1765269781498,0.02136933,90557.0,90556.0,0.11018978]
[1765269781879,0.02136933,90557.0,90556.0,0.05052]
[1765269782074,0.01032657,90557.0,90556.0,0.11180265]
[1765269782281,0.01104252,90559.0,90556.0,0.11180265]
[1765269782282,0.01104252,90559.0,90556.0,0.12283457]
[1765269782470,0.01104252,90559.0,90558.0,0.01533]
[1765269782471,0.02136909,90559.0,90558.0,0.01533]
[1765269783101,0.02136909,90559.0,90558.0,0.03939]
[1765269783309,0.01104252,90559.0,90558.0,0.03939]
[1765269783643,0.02139503,90559.0,90558.0,0.01533]
[1765269783848,0.22085293,90558.0,90556.0,0.07356168]
[1765269784061,0.01035251,90557.0,90556.0,0.07356168]
[1765269784287,0.01035251,90557.0,90556.0,0.01390287]
[1765269784486,0.01035251,90557.0,90556.0,0.02978287]
[1765269784724,0.01035251,90557.0,90556.0,0.05384287]
[1765269785940,0.01035251,90557.0,90556.0,0.05484287]
[1765269786167,0.01035251,90557.0,90556.0,0.05684287]
[1765269786370,0.22085293,90558.0,90556.0,0.05484287]
[1765269786530,0.22085293,90558.0,90557.0,0.03994]
[1765269786699,0.23120204,90558.0,90557.0,0.03994]
[1765269788738,0.23120204,90558.0,90557.0,0.04194]
[1765269789113,0.23120204,90558.0,90557.0,0.04294]
[1765269790388,0.22085293,90558.0,90557.0,0.04294]
[1765269790744,0.23188864,90561.0,90557.0,0.04294]
[1765269790955,0.23188864,90561.0,90560.0,0.03974671]
[1765269791172,0.01034667,90561.0,90560.0,0.01588]
[1765269791378,0.01104203,90563.0,90560.0,0.03994]
[1765269791696,0.23188469,90563.0,90562.0,0.03974205]
[1765269791901,0.0213887,90563.0,90562.0,0.05562205]
[1765269792063,0.01034667,90563.0,90562.0,0.05562205]
[1765269792261,0.02138858,90564.0,90562.0,0.07968205]
[1765269792547,0.02138858,90564.0,90563.0,0.03994]
[1765269793072,0.24222917,90564.0,90563.0,0.03994]
[1765269793423,0.01034667,90564.0,90563.0,0.07968205]
[1765269793640,0.01638393,90565.0,90563.0,0.07968205]
[1765269793842,0.01034667,90565.0,90563.0,0.07968205]
[1765269794073,0.2208383,90564.0,90563.0,0.07968205]
[1765269794296,0.23118497,90564.0,90563.0,0.07968205]
[1765269794434,0.23118497,90564.0,90563.0,0.03994]
[1765269795039,0.01034667,90564.0,90563.0,0.30152279]
[1765269795242,0.01034667,90571.0,90568.0,0.01104142]
[1765269795464,0.01103996,90580.0,90568.0,0.01104142]
[1765269795465,0.01104008,90579.0,90575.0,0.01241]
[1765269795684,0.0110402,90578.0,90575.0,0.05213574]
[1765269795881,0.02138687,90578.0,90575.0,0.05213574]
[1765269796129,0.02138687,90578.0,90575.0,0.07619574]
[1765269796361,0.02138687,90578.0,90575.0,0.03647]
[1765269796643,0.0105,90576.0,90574.0,0.03972574]
[1765269796846,0.23130904,90576.0,90574.0,0.03972574]
[1765269797549,0.22081392,90574.0,90573.0,0.03972574]
[1765269798845,0.22081392,90574.0,90573.0,0.04272574]
[1765269799256,0.22081392,90574.0,90573.0,0.003]
[1765269799862,0.04089812,90574.0,90573.0,0.22381635]
[1765269800028,0.01103972,90582.0,90578.0,0.0110402]
[1765269800378,0.01127736,90581.0,90578.0,0.0234502]
[1765269800560,0.01651402,90581.0,90578.0,0.0475102]
[1765269800757,0.01651402,90581.0,90580.0,0.23667929]
[1765269800758,0.00023752,90581.0,90580.0,0.23667929]
[1765269801107,0.00023752,90581.0,90580.0,0.26073929]
[1765269801431,0.00023752,90581.0,90580.0,0.30041886]
[1765269801631,0.00023752,90581.0,90580.0,0.26073929]
[1765269802087,0.00023752,90581.0,90580.0,0.3203981]
[1765269802496,0.00023752,90581.0,90580.0,0.26073929]
[1765269802697,0.00023752,90581.0,90580.0,0.26173929]
[1765269803110,0.00023752,90581.0,90580.0,0.26073929]
[1765269804403,0.00023752,90581.0,90580.0,0.26273929]
[1765269804602,0.00023752,90581.0,90580.0,0.26535216]
[1765269805603,0.00023752,90581.0,90580.0,0.26235216]
[1765269805780,0.00023752,90581.0,90580.0,0.26435216]
[1765269805985,0.00023752,90581.0,90580.0,0.26735216]
[1765269806204,0.00023752,90581.0,90580.0,0.26435216]
[1765269807049,0.00023752,90581.0,90580.0,0.26235216]
[1765269807254,0.00023752,90581.0,90580.0,0.26435216]
[1765269807587,0.00023752,90581.0,90580.0,0.26735216]
[1765269808755,0.00023752,90581.0,90580.0,0.28426824]
[1765269809500,0.00023752,90581.0,90580.0,0.34361899]
[1765269815830,0.00023752,90581.0,90580.0,0.60726824]
[1765269816161,0.00023752,90581.0,90580.0,0.62926424]
[1765269816488,0.00023752,90581.0,90580.0,0.62726424]
[1765269816856,0.00223752,90581.0,90580.0,0.62726424]
[1765269817343,0.00023752,90581.0,90580.0,0.62426424]
[1765269817581,0.00223752,90581.0,90580.0,0.62426424]
[1765269817714,0.00323752,90581.0,90580.0,0.62426424]
[1765269819602,0.00223752,90581.0,90580.0,0.62426424]
[1765269820058,0.00323752,90581.0,90580.0,0.62426424]
[1765269820289,0.00123752,90581.0,90580.0,0.60226824]
[1765269820443,0.00123752,90581.0,90580.0,0.7197532]
[1765269820650,0.00123752,90581.0,90580.0,0.62426424]
[1765269821232,0.00123752,90581.0,90580.0,0.76986424]
[1765269821458,0.00123752,90581.0,90580.0,0.80302445]
[1765269825422,0.00123752,90581.0,90580.0,0.90218527]
[1765269826921,0.00123752,90581.0,90580.0,0.90468527]
[1765269827142,0.00123752,90581.0,90580.0,0.88268927]
[1765269827290,0.00123752,90581.0,90580.0,0.78352845]
[1765269828194,0.00123752,90581.0,90580.0,0.8824765]
[1765269828859,0.00123752,90581.0,90580.0,0.78352845]
[1765269829421,1.99,90600.0,90599.0,0.22075298]
[1765269829623,1.99,90600.0,90599.0,0.27863298]
[1765269830140,1.99056396,90600.0,90599.0,0.31179319]
[1765269830533,1.99095027,90600.0,90599.0,0.31279319]
[1765269843298,1.99095027,90600.0,90599.0,0.39199441]
[1765269844358,1.99095027,90600.0,90599.0,0.31279319]
[1765269854059,1.99095027,90600.0,90599.0,0.27963298]
[1765269860722,1.99095027,90600.0,90599.0,0.26219298]
[1765269860925,1.99095027,90600.0,90599.0,0.27963298]
[1765269873366,1.99095027,90600.0,90599.0,0.001]
[1765269873367,2.3201801,90600.0,90599.0,0.001]
[1765269873558,2.01305027,90600.0,90599.0,0.001]
[1765269874200,0.0221,90598.0,90597.0,0.31127734]
[1765269874622,0.0005046,90598.0,90597.0,0.31127734]
[1765269875240,0.0005046,90598.0,90597.0,0.31227734]
[1765269875587,0.0005046,90598.0,90597.0,0.33992734]
[1765269875798,0.0005046,90598.0,90597.0,0.28458404]
[1765269893725,0.0005046,90598.0,90597.0,0.36622342]
[1765269894035,0.0005046,90598.0,90597.0,0.28619691]
[1765269894670,1.90140053,90600.0,90599.0,0.23641298]
[1765269894828,1.90140053,90600.0,90599.0,0.26185598]
[1765269895185,1.90140053,90600.0,90599.0,0.28626598]
[1765269898113,1.90140053,90600.0,90599.0,0.31942249]
[1765269898504,1.90140053,90600.0,90599.0,0.34141849]
[1765269899317,1.90140053,90600.0,90599.0,0.31942249]
[1765269899543,1.75427226,90600.0,90599.0,0.31758836]
[1765269900066,1.75227226,90600.0,90599.0,0.31758836]
[1765269900447,1.75427226,90600.0,90599.0,0.70311135]
[1765269900850,1.75427226,90600.0,90599.0,0.80231369]
[1765269901082,1.75427226,90600.0,90599.0,0.70311135]
[1765269901388,1.75427226,90600.0,90599.0,0.80231369]
[1765269901592,1.75227226,90600.0,90599.0,0.70311135]
[1765269901943,1.75427226,90600.0,90599.0,0.70311135]
[1765269902348,1.75227226,90600.0,90599.0,0.70311135]
[1765269902776,1.75327226,90600.0,90599.0,0.70311135]
[1765269904562,1.75327226,90600.0,90599.0,0.61697949]
[1765269904797,1.75327226,90600.0,90599.0,0.63441949]
[1765269905244,1.75227226,90600.0,90599.0,0.63441949]
[1765269905665,1.75427226,90600.0,90599.0,0.63441949]
[1765269905874,1.75527226,90600.0,90599.0,0.63441949]
[1765269912016,1.75527226,90600.0,90599.0,0.63603236]
[1765269913757,1.6657955,90600.0,90599.0,0.65980555]
[1765269914728,1.6657955,90600.0,90599.0,0.63603236]
[1765269917574,1.6657955,90600.0,90599.0,0.65802836]
[1765269918051,1.6657955,90600.0,90599.0,0.63603236]
[1765269918220,1.6657955,90600.0,90599.0,0.65802836]
[1765269918423,1.6657955,90600.0,90599.0,0.72055135]
[1765269918626,1.51367919,90600.0,90599.0,0.72055135]
[1765269919070,1.51567919,90600.0,90599.0,0.72055135]
[1765269919274,1.51467919,90600.0,90599.0,0.72055135]
[1765269920296,1.51367919,90600.0,90599.0,0.72055135]
[1765269921325,1.51467919,90600.0,90599.0,0.72055135]
[1765269922290,1.51467919,90600.0,90599.0,0.86615135]
[1765269922466,0.66646786,90600.0,90599.0,0.86615135]
[1765269923367,0.66646786,90600.0,90599.0,0.88827135]
[1765269923565,0.66546786,90600.0,90599.0,0.88827135]
[1765269923931,0.10685507,90600.0,90599.0,0.88827135]
[1765269924335,0.00023742,90606.0,90599.0,0.88827135]
[1765269924336,0.00023742,90606.0,90605.0,0.65037735]
[1765269924685,0.00023742,90606.0,90605.0,0.6671357]
[1765269924820,0.00023742,90606.0,90605.0,0.6906257]
[1765269925230,0.00023742,90606.0,90605.0,0.6685057]
[1765269926017,0.00023742,90606.0,90605.0,0.6705057]
[1765269926772,0.00023742,90606.0,90605.0,0.67592499]
[1765269927954,0.00023742,90606.0,90605.0,0.82152499]
[1765269928304,0.00023742,90606.0,90605.0,0.83846456]
[1765269929718,0.00023742,90606.0,90605.0,0.92077774]
[1765269934329,0.0004,90620.0,90619.0,0.56570026]
[1765269934466,0.0004,90620.0,90619.0,0.74663313]
[1765269934664,0.0004,90620.0,90619.0,0.77051313]
[1765269934899,0.0004,90620.0,90619.0,0.7749324]
[1765269935106,0.01103168,90648.0,90639.0,0.22065556]
[1765269935313,0.22102966,90650.0,90639.0,0.30197882]
[1765269935542,0.0105,90643.0,90639.0,0.04116326]
[1765269935871,0.0221,90642.0,90639.0,0.07430783]
[1765269936004,0.03313241,90642.0,90639.0,0.07430783]